fUST/lending_fUST_20260416
["ID","MTS","AMOUNT","RATE_DAILY","PERIOD"]
[420619702,1776351963103,899.0,0.00020199,120]
[420619703,1776351964878,899.0,0.00021208,120]
[420619704,1776351966621,899.0,0.00022269,120]
[420619705,1776351968555,899.0,0.00023382,120]
[420619706,1776351970602,899.0,0.00024551,120]
[420619721,1776351991828,3000.0,0.000135,120]
[420619722,1776351991987,1800.0,0.0001377,120]
[420619723,1776351992143,1050.0,0.0001404,120]
[420619724,1776351992301,600.0,0.0001431,120]
[420619725,1776351992494,300.0,0.0001458,120]
[420619733,1776352054821,775.83,0.00024658,120]
[420619739,1776352209729,934.0,0.00022779,120]
[420619740,1776352211045,934.0,0.00023918,120]
[420619747,1776352231969,-1454.63242915,6.848e-05,2]
[420619748,1776352231987,-3545.36757085,6.848e-05,2]
[420619749,1776352231997,-346.51631174,7.058e-05,2]
[420619752,1776352232007,-193.616349,7.129e-05,2]
[420619754,1776352232017,-262.54,7.332e-05,26]
[420619756,1776352232026,-500.0,7.396e-05,2]
[420619758,1776352232036,-500.0,7.396e-05,2]
[420619760,1776352232046,-500.0,7.396e-05,2]
[420619762,1776352232055,-235.95976241,7.396e-05,2]
[420619777,1776352234061,516.0,0.00022885,120]
[420619910,1776352235361,516.0,0.00024029,120]
[420619936,1776352240103,-264.04023759,7.396e-05,2]
[420619937,1776352240112,-500.0,7.396e-05,2]
[420619938,1776352240121,-15.95976241,7.396e-05,2]
[420619939,1776352240135,-484.04023759,7.396e-05,2]
[420619940,1776352240145,-500.0,7.396e-05,2]
[420619941,1776352240155,-500.0,7.396e-05,2]
[420619943,1776352240164,-31.05984514,7.396e-05,2]
[420619972,1776352240526,-468.94015486,7.396e-05,2]
[420619973,1776352240536,-500.0,7.396e-05,2]
[420619974,1776352240547,-334.63173644,7.396e-05,2]
[420619975,1776352240557,-500.0,7.396e-05,2]
[420619976,1776352240566,-500.0,7.396e-05,2]
[420619977,1776352240576,-560.62967597,7.396e-05,2]
[420619978,1776352240586,-385.39543059,7.396e-05,2]
[420619979,1776352240595,-562.75812557,7.396e-05,2]
[420619980,1776352240605,-663.87431024,7.396e-05,2]
[420619981,1776352240615,-335.57056633,7.396e-05,2]
[420620002,1776352243956,-328.30374391,7.396e-05,2]
[420620003,1776352243966,-663.87431024,7.396e-05,2]
[420620004,1776352243975,-663.87431024,7.396e-05,2]
[420620005,1776352243985,-663.87431024,7.396e-05,2]
[420620006,1776352243994,-663.87431024,7.396e-05,2]
[420620007,1776352244004,-663.87431024,7.396e-05,2]
[420620008,1776352244013,-663.87431024,7.396e-05,2]
[420620009,1776352244023,-663.87431024,7.396e-05,2]
[420620010,1776352244032,-663.87431024,7.396e-05,2]
[420620011,1776352244041,-663.87431024,7.396e-05,2]
[420620012,1776352244050,-663.87431024,7.396e-05,2]
[420620013,1776352244059,-663.87431024,7.396e-05,2]
[420620014,1776352244068,-663.87431024,7.396e-05,2]
[420620015,1776352244078,-663.87431024,7.396e-05,2]
[420620016,1776352244088,-663.87431024,7.396e-05,2]
[420620017,1776352244097,-663.87431024,7.396e-05,2]
[420620018,1776352244106,-663.87431024,7.396e-05,2]
[420620019,1776352244116,-663.87431024,7.396e-05,2]
[420620021,1776352244126,-663.87431024,7.396e-05,2]
[420620022,1776352244137,-663.87431024,7.396e-05,2]
[420620023,1776352244146,-796.64917227,7.396e-05,2]
[420620024,1776352244155,-796.64917227,7.396e-05,2]
[420620025,1776352244165,-796.64917227,7.396e-05,2]
[420620026,1776352244175,-796.64917227,7.396e-05,2]
[420620027,1776352244184,-796.64917227,7.396e-05,2]
[420620028,1776352244194,-500.0,7.396e-05,2]
[420620029,1776352244203,-13913.54548977,7.397e-05,2]
[420620030,1776352244216,-1415.99137086,7.397e-05,2]
[420620041,1776352246181,-5000.0,7.322e-05,2]
[420620042,1776352246190,-4174.83275232,7.397e-05,2]
[420620043,1776352246201,-2566.2570887,7.397e-05,2]
[420620044,1776352291845,5194.826,0.00024658,120]
[420620046,1776352466066,2500.0,0.00024658,120]
[420620048,1776352520538,467.0,0.0002357,120]
[420620049,1776352531484,258.0,0.00023578,120]
[420620052,1776352639397,4000.0,0.00024658,120]
[420620053,1776352658908,530.26694531,0.0002465,120]
[420620054,1776352708031,1498.54082731,0.0002465,120]
[420620057,1776352804651,295699.42814644,0.00022,120]
[420620058,1776352809833,3999.999,0.00024658,120]
[420620059,1776352814289,578.0,0.00022586,120]
[420620060,1776352815677,578.0,0.00023715,120]
[420620063,1776352839403,232.0,0.0002262,120]
[420620064,1776352840849,232.0,0.00023751,120]
[420620065,1776352883890,-151.0,9.01e-05,30]
[420620066,1776352885142,-151.0,9.01e-05,30]
[420620067,1776352885959,-151.0,9.01e-05,30]
[420620068,1776352886800,-151.0,9.01e-05,30]
[420620069,1776352887613,-151.0,9.01e-05,30]
[420620070,1776352890697,5000.0,0.00024658,120]
[420620072,1776352951710,-151.0,9.01e-05,30]
[420620074,1776352952545,-151.0,9.01e-05,30]
[420620075,1776352953574,-151.0,9.01e-05,30]
[420620076,1776352954473,-151.0,9.01e-05,30]
[420620077,1776352955462,-151.0,9.01e-05,30]
[420620078,1776352956323,-151.0,9.01e-05,30]
[420620079,1776352957185,-151.0,9.01e-05,30]
[420620080,1776352958162,-151.0,9.01e-05,30]
[420620081,1776352959108,-151.0,9.01e-05,30]
[420620082,1776353013801,2590.78,0.00024657,120]
[420620083,1776353036482,150.0,0.00024658,120]
[420620085,1776353110023,347.0,0.00022689,120]
[420620086,1776353111132,347.0,0.00023824,120]
[420620095,1776353136524,174.0,0.00022688,120]
[420620096,1776353138691,174.0,0.00023822,120]
[420620101,1776353258123,2000.0,0.00024658,120]
[420620102,1776353275687,2000.0,0.00024658,120]
[420620103,1776353285390,2000.0,0.00024658,120]
[420620104,1776353291867,2000.0,0.00024658,120]
[420620105,1776353297928,2000.0,0.00024658,120]
[420620106,1776353312647,584.5762736,0.00024658,120]
[420620107,1776353325683,2222.0,0.00024657,120]
[420620109,1776353348261,2000.0,0.00024658,120]
[420620110,1776353355249,2000.0,0.00024658,120]
[420620114,1776353378291,2000.0,0.00024658,120]
[420620115,1776353384697,2000.0,0.00024658,120]
[420620117,1776353408119,5432.656,0.00024658,120]
[420620118,1776353418906,208.0,0.00022819,120]
[420620119,1776353420541,208.0,0.0002396,120]
[420620123,1776353432153,-163.0743128,5.738e-05,2]
[420620124,1776353432163,-162.84407878,5.915e-05,2]
[420620125,1776353432174,-342.15592122,5.915e-05,2]
[420620126,1776353432183,-1752.80653999,5.977e-05,2]
[420620127,1776353432194,-3247.19346001,5.977e-05,2]
[420620128,1776353432204,-371.505,6.037e-05,2]
[420620129,1776353432213,-351.85542521,6.098e-05,2]
[420620130,1776353432222,-250.0,6.13e-05,2]
[420620131,1776353432232,-300.0,6.284e-05,2]
[420620132,1776353432241,-300.0,6.284e-05,2]
[420620133,1776353432250,-300.0,6.284e-05,2]
[420620134,1776353432260,-300.0,6.284e-05,2]
[420620135,1776353432269,-300.0,6.284e-05,2]
[420620136,1776353432279,-300.0,6.284e-05,2]
[420620137,1776353432288,-300.0,6.284e-05,2]
[420620138,1776353432297,-300.0,6.284e-05,2]
[420620139,1776353432306,-300.0,6.284e-05,2]
[420620140,1776353432315,-300.0,6.284e-05,2]
[420620141,1776353432324,-300.0,6.284e-05,2]
[420620142,1776353432334,-300.0,6.284e-05,2]
[420620143,1776353432343,-300.0,6.284e-05,2]
[420620144,1776353432352,-300.0,6.284e-05,2]
[420620145,1776353432362,-300.0,6.284e-05,2]
[420620146,1776353432371,-600.0,6.409e-05,2]
[420620147,1776353432380,-720.0,7.05e-05,2]
[420620148,1776353432390,-159.786,7.053e-05,2]
[420620149,1776353432399,-500.0,7.096e-05,2]
[420620150,1776353432408,-575.41869972,7.096e-05,2]
[420620151,1776353432417,-500.0,7.096e-05,2]
[420620152,1776353432426,-500.0,7.096e-05,2]
[420620153,1776353432435,-500.0,7.096e-05,2]
[420620154,1776353432444,-500.0,7.096e-05,2]
[420620155,1776353432454,-323.92082438,7.096e-05,2]
[420620156,1776353432463,-500.0,7.096e-05,2]
[420620157,1776353432472,-500.0,7.096e-05,2]
[420620158,1776353432481,-500.0,7.096e-05,2]
[420620159,1776353432491,-500.0,7.096e-05,2]
[420620160,1776353432500,-321.68929887,7.096e-05,2]
[420620161,1776353432520,-178.31070113,7.096e-05,2]
[420620162,1776353432529,-262.10265212,7.096e-05,2]
[420620163,1776353432540,-237.89734788,7.096e-05,2]
[420620164,1776353432550,-203.84797072,7.096e-05,2]
[420620165,1776353432559,-540.63219818,7.096e-05,2]
[420620166,1776353432569,-540.63219818,7.096e-05,2]
[420620167,1776353432578,-540.63219818,7.096e-05,2]
[420620168,1776353432590,-540.63219818,7.096e-05,2]
[420620169,1776353432599,-540.63219818,7.096e-05,2]
[420620170,1776353432609,-540.63219818,7.096e-05,2]
[420620171,1776353432619,-540.63219818,7.096e-05,2]
[420620172,1776353432629,-540.63219818,7.096e-05,2]
[420620173,1776353432638,-540.63219818,7.096e-05,2]
[420620174,1776353432648,-540.63219818,7.096e-05,2]
[420620175,1776353432657,-540.63219818,7.096e-05,2]
[420620176,1776353432667,-540.63219818,7.096e-05,2]
[420620177,1776353432676,-636.45156336,7.096e-05,2]
[420620178,1776353432686,-636.45156336,7.096e-05,2]
[420620179,1776353432695,-636.45156336,7.096e-05,2]
[420620180,1776353432704,-1189.64283095,7.097e-05,2]
[420620181,1776353432716,-34181.93241761,7.097e-05,2]
[420620182,1776353432727,-4674.09999998,7.097e-05,2]
[420620183,1776353432738,-60891.1056158,7.097e-05,2]
[420620184,1776353432748,-149.67865885,7.173e-05,2]
[420620185,1776353432759,-404.40944333,7.173e-05,2]
[420620186,1776353432768,-647.30225955,7.173e-05,2]
[420620187,1776353432777,-169.40221734,7.173e-05,2]
[420620188,1776353432786,-502.62934024,7.173e-05,2]
[420620189,1776353432795,-500.0,7.173e-05,2]
[420620190,1776353432804,-500.0,7.173e-05,2]
[420620191,1776353432813,-270.3336884,7.173e-05,2]
[420620192,1776353432824,-229.6663116,7.173e-05,2]
[420620193,1776353432833,-500.0,7.173e-05,2]
[420620194,1776353432843,-274.80603781,7.173e-05,2]
[420620195,1776353432854,-225.19396219,7.173e-05,2]
[420620196,1776353432864,-500.0,7.173e-05,2]
[420620197,1776353432873,-27.68445781,7.234e-05,2]
[420620198,1776353432884,-1261.80175922,7.234e-05,2]
[420620199,1776353432894,-62.44549991,7.234e-05,2]
[420620200,1776353432907,-1727.05832074,7.234e-05,2]
[420620201,1776353432916,-1733.61986208,7.334e-05,2]
[420620202,1776353432929,-838.24268254,7.334e-05,2]
[420620203,1776353432938,-174.03171887,7.389e-05,2]
[420620204,1776353433039,174.0,0.00022856,120]
[420620249,1776353434311,174.0,0.00023999,120]
[420620257,1776353438729,-5000.0,7.315e-05,2]
[420620258,1776353438739,-43369.23783203,7.389e-05,2]
[420620259,1776353438748,-3348.1649011,7.389e-05,2]
[420620260,1776353438757,-17023.4604149,7.389e-05,2]
[420620261,1776353438766,-1404.9461864,7.389e-05,2]
[420620262,1776353438775,-193.616349,7.429e-05,2]
[420620263,1776353438784,-500.0,7.721e-05,2]
[420620264,1776353438794,-500.0,7.721e-05,2]
[420620265,1776353438803,-193.616349,7.73e-05,2]
[420620266,1776353438813,-864.0,7.754e-05,2]
[420620267,1776353438822,-193.616349,8.03e-05,2]
[420620268,1776353438831,-5095.7592024,8.037e-05,2]
[420620269,1776353438841,-415.18940175,8.098e-05,2]
[420620270,1776353438850,-308.19525665,8.16e-05,2]
[420620271,1776353438860,-500.0,8.193e-05,2]
[420620272,1776353438869,-500.0,8.193e-05,2]
[420620273,1776353438878,-500.0,8.193e-05,2]
[420620274,1776353438888,-500.09421662,8.193e-05,2]
[420620275,1776353438897,-166.93974982,8.193e-05,2]
[420620276,1776353438907,-271.78841102,8.193e-05,2]
[420620277,1776353438917,-531.4671873,8.193e-05,2]
[420620278,1776353438926,-500.55320333,8.193e-05,2]
[420620279,1776353438935,-505.72353865,8.193e-05,2]
[420620280,1776353438944,-500.0,8.193e-05,2]
[420620281,1776353438953,-536.85540735,8.193e-05,2]
[420620282,1776353438963,-160.9336156,8.193e-05,2]
[420620283,1776353438972,-500.0,8.193e-05,2]
[420620284,1776353438982,-500.0,8.193e-05,2]
[420620285,1776353438991,-500.0,8.193e-05,2]
[420620286,1776353439000,-531.41129752,8.193e-05,2]
[420620287,1776353439011,-213.04910531,8.193e-05,2]
[420620288,1776353439020,-501.25981471,8.193e-05,2]
[420620289,1776353439030,-500.82983759,8.193e-05,2]
[420620290,1776353439040,-500.0,8.193e-05,2]
[420620291,1776353439050,-500.0,8.193e-05,2]
[420620292,1776353439059,-500.0,8.193e-05,2]
[420620293,1776353439068,-362.15931965,8.193e-05,2]
[420620294,1776353439080,-500.0,8.193e-05,2]
[420620295,1776353439090,-500.0,8.193e-05,2]
[420620296,1776353439099,-740.5,8.2e-05,2]
[420620297,1776353439108,-155.0,8.218e-05,2]
[420620298,1776353439117,-155.0,8.218e-05,2]
[420620299,1776353439127,-554.68924074,8.219e-05,2]
[420620300,1776353439136,-500.0,8.219e-05,2]
[420620301,1776353439144,-500.0,8.219e-05,2]
[420620302,1776353439154,-500.0,8.219e-05,2]
[420620303,1776353439165,-500.0,8.219e-05,2]
[420620304,1776353439174,-500.0,8.219e-05,2]
[420620305,1776353439183,-500.0,8.219e-05,2]
[420620306,1776353439193,-500.0,8.219e-05,2]
[420620307,1776353439202,-500.0,8.219e-05,2]
[420620308,1776353439212,-500.0,8.219e-05,2]
[420620309,1776353439221,-451.72144624,8.219e-05,2]
[420620310,1776353439231,-500.0,8.219e-05,2]
[420620311,1776353439240,-800.53,8.219e-05,2]
[420620312,1776353439251,-792.82,8.219e-05,2]
[420620313,1776353439260,-904.86,8.219e-05,2]
[420620314,1776353439269,-796.73,8.219e-05,2]
[420620315,1776353439279,-856.42,8.219e-05,2]
[420620316,1776353439289,-500.0,8.219e-05,2]
[420620317,1776353439299,-181.11205257,8.219e-05,2]
[420620318,1776353439309,-500.0,8.219e-05,2]
[420620319,1776353439319,-500.0,8.219e-05,2]
[420620320,1776353439329,-881.59,8.219e-05,2]
[420620321,1776353439338,-500.0,8.219e-05,2]
[420620322,1776353439348,-1040.33,8.219e-05,2]
[420620323,1776353439357,-500.0,8.219e-05,2]
[420620324,1776353439366,-500.0,8.219e-05,2]
[420620325,1776353439376,-624.4192331,8.219e-05,2]
[420620326,1776353439385,-500.0,8.219e-05,2]
[420620327,1776353439394,-500.0,8.219e-05,2]
[420620328,1776353439404,-433.08019989,8.219e-05,2]
[420620329,1776353439415,-500.0,8.219e-05,2]
[420620330,1776353439424,-500.0,8.219e-05,2]
[420620331,1776353439434,-500.0,8.219e-05,2]
[420620332,1776353439443,-507.95,8.219e-05,2]
[420620333,1776353439452,-500.0,8.219e-05,2]
[420620334,1776353439463,-500.0,8.219e-05,2]
[420620335,1776353439472,-500.0,8.219e-05,2]
[420620336,1776353439482,-500.0,8.219e-05,2]
[420620337,1776353439492,-542.44004264,8.219e-05,2]
[420620338,1776353439502,-500.0,8.219e-05,2]
[420620339,1776353439512,-500.0,8.219e-05,2]
[420620340,1776353439523,-500.0,8.219e-05,2]
[420620341,1776353439533,-293.19681609,8.219e-05,2]
[420620342,1776353439543,-500.0,8.219e-05,2]
[420620343,1776353439553,-500.0,8.219e-05,2]
[420620344,1776353439562,-500.0,8.219e-05,2]
[420620345,1776353439572,-500.0,8.219e-05,2]
[420620346,1776353439582,-500.0,8.219e-05,2]
[420620347,1776353439592,-500.0,8.219e-05,2]
[420620348,1776353439601,-500.0,8.219e-05,2]
[420620349,1776353439611,-294.02139998,8.219e-05,2]
[420620350,1776353439620,-500.0,8.219e-05,2]
[420620351,1776353439630,-500.0,8.219e-05,2]
[420620352,1776353439640,-1379.61,8.219e-05,2]
[420620354,1776353439651,-500.0,8.219e-05,2]
[420620355,1776353439661,-1000.0,8.219e-05,2]
[420620356,1776353439671,-500.0,8.219e-05,2]
[420620357,1776353439680,-583.56,8.219e-05,2]
[420620358,1776353439690,-500.0,8.219e-05,2]
[420620359,1776353439700,-500.0,8.219e-05,2]
[420620360,1776353439709,-500.0,8.219e-05,2]
[420620361,1776353439719,-594.58,8.219e-05,2]
[420620362,1776353439728,-500.0,8.219e-05,2]
[420620363,1776353439738,-500.0,8.219e-05,2]
[420620364,1776353439747,-1934.96,8.219e-05,2]
[420620365,1776353439757,-500.0,8.219e-05,2]
[420620366,1776353439766,-500.0,8.219e-05,2]
[420620367,1776353439775,-500.0,8.219e-05,2]
[420620368,1776353439785,-500.0,8.219e-05,2]
[420620369,1776353439794,-500.0,8.219e-05,2]
[420620370,1776353439804,-987.71,8.219e-05,2]
[420620371,1776353439813,-508.54,8.219e-05,2]
[420620372,1776353439822,-500.0,8.219e-05,2]
[420620373,1776353439832,-500.0,8.219e-05,2]
[420620374,1776353439841,-500.0,8.219e-05,2]
[420620375,1776353439851,-500.0,8.219e-05,2]
[420620376,1776353439862,-500.0,8.219e-05,2]
[420620377,1776353439871,-500.0,8.219e-05,2]
[420620378,1776353439880,-500.0,8.219e-05,2]
[420620379,1776353439891,-289.18877131,8.219e-05,2]
[420620380,1776353439902,-500.0,8.219e-05,2]
[420620381,1776353439911,-500.0,8.219e-05,2]
[420620382,1776353439921,-568.57045903,8.219e-05,2]
[420620383,1776353439931,-500.0,8.219e-05,2]
[420620384,1776353439940,-500.0,8.219e-05,2]
[420620385,1776353439951,-500.0,8.219e-05,2]
[420620386,1776353439960,-500.0,8.219e-05,2]
[420620387,1776353439970,-500.0,8.219e-05,2]
[420620388,1776353439979,-500.0,8.219e-05,2]
[420620389,1776353439989,-1405.28,8.219e-05,2]
[420620390,1776353439999,-500.0,8.219e-05,2]
[420620391,1776353440009,-500.0,8.219e-05,2]
[420620392,1776353440020,-564.92,8.219e-05,2]
[420620393,1776353440029,-500.0,8.219e-05,2]
[420620394,1776353440039,-500.0,8.219e-05,2]
[420620395,1776353440050,-500.0,8.219e-05,2]
[420620396,1776353440059,-500.0,8.219e-05,2]
[420620397,1776353440068,-1000.37,8.219e-05,2]
[420620398,1776353440078,-1463.45,8.219e-05,2]
[420620399,1776353440088,-500.0,8.219e-05,2]
[420620400,1776353440098,-500.0,8.219e-05,2]
[420620401,1776353440108,-500.0,8.219e-05,2]
[420620402,1776353440117,-500.0,8.219e-05,2]
[420620403,1776353440126,-500.0,8.219e-05,2]
[420620404,1776353440136,-500.0,8.219e-05,2]
[420620405,1776353440145,-1893.63,8.219e-05,2]
[420620406,1776353440154,-500.0,8.219e-05,2]
[420620407,1776353440165,-750.35,8.219e-05,2]
[420620408,1776353440174,-500.0,8.219e-05,2]
[420620409,1776353440184,-500.0,8.219e-05,2]
[420620410,1776353440194,-500.0,8.219e-05,2]
[420620411,1776353440203,-500.0,8.219e-05,2]
[420620412,1776353440212,-500.0,8.219e-05,2]
[420620413,1776353440221,-500.0,8.219e-05,2]
[420620414,1776353440231,-827.06,8.219e-05,2]
[420620415,1776353440240,-262.18836664,8.219e-05,2]
[420620416,1776353440249,-500.0,8.219e-05,2]
[420620417,1776353440258,-235.35789369,8.219e-05,2]
[420620418,1776353440268,-679.45,8.219e-05,2]
[420620419,1776353440278,-1325.62,8.219e-05,2]
[420620420,1776353440287,-1858.53,8.219e-05,2]
[420620421,1776353440296,-276.42554979,8.219e-05,2]
[420620422,1776353440306,-500.0,8.219e-05,2]
[420620423,1776353440315,-500.0,8.219e-05,2]
[420620424,1776353440324,-668.8,8.219e-05,2]
[420620425,1776353440334,-831.62,8.219e-05,2]
[420620426,1776353440343,-500.0,8.219e-05,2]
[420620427,1776353440352,-1194.1,8.219e-05,2]
[420620428,1776353440362,-1106.67,8.219e-05,2]
[420620429,1776353440371,-191.86560353,8.219e-05,2]
[420620430,1776353440380,-842.92,8.219e-05,2]
[420620431,1776353440390,-500.0,8.219e-05,2]
[420620432,1776353440400,-500.0,8.219e-05,2]
[420620433,1776353440410,-1065.05,8.219e-05,2]
[420620434,1776353440419,-500.0,8.219e-05,2]
[420620435,1776353440429,-580.7,8.219e-05,2]
[420620436,1776353440438,-543.62,8.219e-05,2]
[420620437,1776353440447,-1865.77,8.219e-05,2]
[420620438,1776353440457,-500.0,8.219e-05,2]
[420620439,1776353440466,-647.23,8.219e-05,2]
[420620440,1776353440476,-500.0,8.219e-05,2]
[420620441,1776353440486,-260.08550286,8.219e-05,2]
[420620442,1776353440496,-3575.53,8.219e-05,2]
[420620443,1776353440506,-500.0,8.219e-05,2]
[420620444,1776353440516,-500.0,8.219e-05,2]
[420620445,1776353440527,-500.0,8.219e-05,2]
[420620446,1776353440537,-8428.3,8.219e-05,2]
[420620447,1776353440547,-500.0,8.219e-05,2]
[420620448,1776353440557,-500.0,8.219e-05,2]
[420620449,1776353440567,-5335.71,8.219e-05,2]
[420620450,1776353440576,-500.0,8.219e-05,2]
[420620451,1776353440585,-422.8899125,8.219e-05,2]
[420620452,1776353440595,-500.0,8.219e-05,2]
[420620453,1776353440604,-1394.57,8.219e-05,2]
[420620454,1776353440613,-500.0,8.219e-05,2]
[420620455,1776353440624,-893.52,8.219e-05,2]
[420620456,1776353440634,-500.0,8.219e-05,2]
[420620457,1776353440643,-500.0,8.219e-05,2]
[420620458,1776353440652,-345.4977143,8.219e-05,2]
[420620459,1776353440662,-500.74172439,8.219e-05,2]
[420620460,1776353440671,-500.0,8.219e-05,2]
[420620461,1776353440680,-3714.2,8.219e-05,2]
[420620462,1776353440690,-210.48062578,8.219e-05,2]
[420620463,1776353440699,-500.0,8.219e-05,2]
[420620464,1776353440708,-500.0,8.219e-05,2]
[420620465,1776353440719,-500.0,8.219e-05,2]
[420620466,1776353440728,-500.0,8.219e-05,2]
[420620467,1776353440737,-566.96,8.219e-05,2]
[420620468,1776353440747,-737.56,8.219e-05,2]
[420620469,1776353440756,-500.0,8.219e-05,2]
[420620470,1776353440765,-500.0,8.219e-05,2]
[420620471,1776353440775,-855.82,8.219e-05,2]
[420620472,1776353440784,-1776.71,8.219e-05,2]
[420620473,1776353440793,-500.0,8.219e-05,2]
[420620474,1776353440803,-500.0,8.219e-05,2]
[420620475,1776353440812,-500.0,8.219e-05,2]
[420620476,1776353440822,-7550.65,8.219e-05,2]
[420620477,1776353440831,-500.0,8.219e-05,2]
[420620478,1776353440841,-782.35,8.219e-05,2]
[420620479,1776353440851,-5124.46,8.219e-05,2]
[420620480,1776353440861,-500.0,8.219e-05,2]
[420620481,1776353440870,-500.0,8.219e-05,2]
[420620482,1776353440880,-7347.94,8.219e-05,2]
[420620483,1776353440889,-5688.91,8.219e-05,2]
[420620484,1776353440898,-500.0,8.219e-05,2]
[420620485,1776353440908,-2412.62,8.219e-05,2]
[420620486,1776353440918,-500.0,8.219e-05,2]
[420620487,1776353440928,-500.0,8.219e-05,2]
[420620488,1776353440937,-500.0,8.219e-05,2]
[420620489,1776353440947,-500.0,8.219e-05,2]
[420620490,1776353440957,-837.43,8.219e-05,2]
[420620491,1776353440966,-1827.06,8.219e-05,2]
[420620492,1776353440976,-539.86,8.219e-05,2]
[420620493,1776353440985,-500.0,8.219e-05,2]
[420620494,1776353440995,-1623.05,8.219e-05,2]
[420620495,1776353441004,-830.99,8.219e-05,2]
[420620496,1776353441014,-500.0,8.219e-05,2]
[420620497,1776353441023,-500.0,8.219e-05,2]
[420620498,1776353441032,-500.0,8.219e-05,2]
[420620499,1776353441041,-500.0,8.219e-05,2]
[420620500,1776353441051,-500.0,8.219e-05,2]
[420620501,1776353441060,-4129.34,8.219e-05,2]
[420620502,1776353441070,-885.19,8.219e-05,2]
[420620503,1776353441079,-525.15,8.219e-05,2]
[420620504,1776353441089,-5451.01,8.219e-05,2]
[420620505,1776353441098,-2343.86,8.219e-05,2]
[420620506,1776353441108,-701.19,8.219e-05,2]
[420620507,1776353441117,-1042.56,8.219e-05,2]
[420620508,1776353441127,-7926.08,8.219e-05,2]
[420620509,1776353441136,-1701.41,8.219e-05,2]
[420620510,1776353441146,-500.0,8.219e-05,2]
[420620511,1776353441155,-500.0,8.219e-05,2]
[420620512,1776353441165,-452.70115946,8.219e-05,2]
[420620513,1776353441174,-931.08,8.219e-05,2]
[420620514,1776353441183,-1591.17,8.219e-05,2]
[420620515,1776353441193,-6086.57,8.219e-05,2]
[420620516,1776353441202,-474.1084274,8.219e-05,2]
[420620517,1776353441211,-524.8,8.219e-05,2]
[420620518,1776353441222,-500.0,8.219e-05,2]
[420620519,1776353441231,-788.32,8.219e-05,2]
[420620520,1776353441241,-500.0,8.219e-05,2]
[420620521,1776353441251,-553.06,8.219e-05,2]
[420620522,1776353441260,-3859.87,8.219e-05,2]
[420620523,1776353441270,-2708.06,8.219e-05,2]
[420620524,1776353441279,-1123.66,8.219e-05,2]
[420620525,1776353441288,-8302.11,8.219e-05,2]
[420620526,1776353441298,-825.32,8.219e-05,2]
[420620527,1776353441307,-4881.76,8.219e-05,2]
[420620528,1776353441316,-500.0,8.219e-05,2]
[420620529,1776353441326,-500.0,8.219e-05,2]
[420620530,1776353441339,-2332.8,8.219e-05,2]
[420620531,1776353441349,-1645.53,8.219e-05,2]
[420620532,1776353441358,-500.0,8.219e-05,2]
[420620533,1776353441367,-1144.48,8.219e-05,2]
[420620534,1776353441376,-500.0,8.219e-05,2]
[420620535,1776353441386,-500.0,8.219e-05,2]
[420620536,1776353441396,-19207.5,8.219e-05,2]
[420620537,1776353441405,-500.0,8.219e-05,2]
[420620538,1776353441415,-602.67,8.219e-05,2]
[420620539,1776353441425,-500.0,8.219e-05,2]
[420620540,1776353441434,-1147.71,8.219e-05,2]
[420620541,1776353441444,-500.0,8.219e-05,2]
[420620542,1776353441453,-500.0,8.219e-05,2]
[420620543,1776353441616,-500.0,8.219e-05,2]
[420620544,1776353441626,-500.0,8.219e-05,2]
[420620545,1776353441637,-8338.2,8.219e-05,2]
[420620546,1776353441646,-11107.2,8.219e-05,2]
[420620547,1776353441655,-587.82072893,8.219e-05,2]
[420620548,1776353441665,-5911.54,8.219e-05,2]
[420620549,1776353441674,-1281.07,8.219e-05,2]
[420620550,1776353441683,-883.31,8.219e-05,2]
[420620551,1776353441693,-7036.41,8.219e-05,2]
[420620552,1776353441703,-2794.34,8.219e-05,2]
[420620553,1776353441717,-803.31,8.219e-05,2]
[420620554,1776353441726,-500.0,8.219e-05,2]